[Event "Sverigemastarklassen 2025"]
[Site "Uppsala, Sweden"]
[Date "2025.06.28"]
[Round "1.3"]
[White "Hillarp-Persson, Tiger"]
[Black "Galperin, Platon"]
[Result "1-0"]
[TimeControl "90 min for 40 move + 30 min with an increment of 30 sec starting move 1"]
[WhiteTitle "GM"]
[BlackTitle "GM"]
[WhiteFideId "1700812"]
[BlackFideId "14165414"]
[WhiteElo "2445"]
[BlackElo "2500"]

1. d4 {[%clk 01:30:57]} {[%emt 00:00:02]} d5 {[%clk 01:30:50]} {[%emt
00:00:11]} 2. c4 {[%clk 01:31:13]} {[%emt 00:00:13]} dxc4 {[%clk 01:31:15]}
{[%emt 00:00:05]} 3. Nf3 {[%clk 01:31:24]} {[%emt 00:00:19]} Nf6 {[%clk
01:31:40]} {[%emt 00:00:05]} 4. e3 {[%clk 01:31:44]} {[%emt 00:00:10]} Be6
{[%clk 01:32:06]} {[%emt 00:00:04]} 5. Nc3 {[%clk 01:29:15]} {[%emt 00:02:59]}
c5 {[%clk 01:32:03]} {[%emt 00:00:34]} 6. Ng5 {[%clk 01:26:28]} {[%emt
00:03:16]} Bg4 {[%clk 01:32:18]} {[%emt 00:00:15]} 7. f3 {[%clk 01:21:08]}
{[%emt 00:05:50]} Bc8 {[%clk 01:29:26]} {[%emt 00:03:23]} 8. Bxc4 {[%clk
01:02:14]} {[%emt 00:19:23]} e6 {[%clk 01:29:48]} {[%emt 00:00:08]} 9. d5
{[%clk 00:42:30]} {[%emt 00:20:14]} Nxd5 {[%clk 01:30:04]} {[%emt 00:00:15]} 10.
Nxd5 {[%clk 00:42:43]} {[%emt 00:00:17]} Nc6 {[%clk 01:17:47]} {[%emt
00:12:47]} 11. O-O {[%clk 00:34:27]} {[%emt 00:08:46]} exd5 {[%clk 01:17:24]}
{[%emt 00:00:53]} 12. Qxd5 {[%clk 00:34:41]} {[%emt 00:00:15]} Qxd5 {[%clk
01:17:48]} {[%emt 00:00:06]} 13. Bxd5 {[%clk 00:35:00]} {[%emt 00:00:11]} Nd8
{[%clk 01:18:16]} {[%emt 00:00:02]} 14. b3 {[%clk 00:25:27]} {[%emt 00:10:04]}
Be7 {[%clk 01:15:17]} {[%emt 00:03:28]} 15. Ne4 {[%clk 00:25:46]} {[%emt
00:00:12]} Be6 {[%clk 01:15:01]} {[%emt 00:00:45]} 16. Rd1 {[%clk 00:25:58]}
{[%emt 00:00:19]} f5 {[%clk 01:10:35]} {[%emt 00:04:54]} 17. Nf2 {[%clk
00:26:00]} {[%emt 00:00:29]} Bf6 {[%clk 01:09:28]} {[%emt 00:01:37]} 18. Rb1
{[%clk 00:26:23]} {[%emt 00:00:06]} Rc8 {[%clk 01:09:32]} {[%emt 00:00:25]} 19.
Bb2 {[%clk 00:20:49]} {[%emt 00:06:06]} Ke7 {[%clk 01:09:04]} {[%emt 00:00:57]}
20. e4 {[%clk 00:18:39]} {[%emt 00:02:41]} Bxb2 {[%clk 00:52:18]} {[%emt
00:17:15]} 21. Rxb2 {[%clk 00:18:58]} {[%emt 00:00:12]} f4 {[%clk 00:52:32]}
{[%emt 00:00:16]} 22. h4 {[%clk 00:14:55]} {[%emt 00:04:33]} Rf8 {[%clk
00:50:09]} {[%emt 00:02:53]} 23. Nd3 {[%clk 00:12:33]} {[%emt 00:02:53]} b6
{[%clk 00:49:19]} {[%emt 00:01:19]} 24. Ne5 {[%clk 00:09:00]} {[%emt 00:04:03]}
Rc7 {[%clk 00:42:16]} {[%emt 00:07:33]} 25. Kf2 {[%clk 00:07:41]} {[%emt
00:01:49]} g6 {[%clk 00:34:03]} {[%emt 00:08:42]} 26. Rbd2 {[%clk 00:07:45]}
{[%emt 00:00:26]} Bc8 {[%clk 00:32:55]} {[%emt 00:01:38]} 27. g3 {[%clk
00:07:57]} {[%emt 00:00:19]} fxg3+ {[%clk 00:32:03]} {[%emt 00:01:23]} 28. Kxg3
{[%clk 00:08:18]} {[%emt 00:00:08]} Ne6 {[%clk 00:32:21]} {[%emt 00:00:11]} 29.
Bxe6 {[%clk 00:07:32]} {[%emt 00:01:17]} Bxe6 {[%clk 00:32:05]} {[%emt
00:00:46]} 30. Rd6 {[%clk 00:06:56]} {[%emt 00:01:05]} Re8 {[%clk 00:28:05]}
{[%emt 00:04:29]} 31. f4 {[%clk 00:06:37]} {[%emt 00:00:51]} Kf8 {[%clk
00:27:37]} {[%emt 00:00:57]} 32. h5 {[%clk 00:06:15]} {[%emt 00:00:53]} gxh5
{[%clk 00:27:02]} {[%emt 00:01:05]} 33. Kh4 {[%clk 00:02:10]} {[%emt 00:04:35]}
b5 {[%clk 00:25:19]} {[%emt 00:02:13]} 34. Kg5 {[%clk 00:01:58]} {[%emt
00:00:41]} Rg7+ {[%clk 00:19:57]} {[%emt 00:05:53]} 35. Kf6 {[%clk 00:01:43]}
{[%emt 00:00:46]} Bc8 {[%clk 00:19:11]} {[%emt 00:01:15]} 36. Rd8 {[%clk
00:01:40]} {[%emt 00:00:32]} Rge7 {[%clk 00:19:34]} {[%emt 00:00:07]} 37. Rxe8+
{[%clk 00:01:52]} {[%emt 00:00:19]} Kxe8 {[%clk 00:19:58]} {[%emt 00:00:07]} 38.
f5 {[%clk 00:02:09]} {[%emt 00:00:13]} Bb7 {[%clk 00:19:48]} {[%emt 00:00:40]}
39. Rg1 {[%clk 00:01:16]} {[%emt 00:01:22]} Kf8 {[%clk 00:20:10]} {[%emt
00:00:08]} 40. Rd1 {[%clk 00:00:59]} {[%emt 00:00:47]} Ke8 {[%clk 00:20:31]}
{[%emt 00:00:09]} 41. Rg1 {[%clk 00:26:31]} {[%emt 00:04:58]} Kf8 {[%clk
00:50:55]} {[%emt 00:00:07]} 42. Rc1 {[%clk 00:23:11]} {[%emt 00:03:49]} Rc7
{[%clk 00:44:47]} {[%emt 00:06:37]} 43. Rxc5 {[%clk 00:20:26]} {[%emt
00:03:16]} 1-0

[Event "Sverigemastarklassen 2025"]
[Site "Uppsala, Sweden"]
[Date "2025.06.28"]
[Round "1.4"]
[White "Lokander, Martin"]
[Black "Pantzar, Milton"]
[Result "1/2-1/2"]
[TimeControl "90 min for 40 move + 30 min with an increment of 30 sec starting move 1"]
[WhiteTitle "IM"]
[BlackTitle "IM"]
[WhiteFideId "1709569"]
[BlackFideId "1721003"]
[WhiteElo "2446"]
[BlackElo "2450"]

1. e4 {[%clk 01:30:40]} {[%emt 00:00:20]} e5 {[%clk 01:30:05]} {[%emt
00:00:55]} 2. Nf3 {[%clk 01:31:04]} {[%emt 00:00:05]} Nc6 {[%clk 01:29:56]}
{[%emt 00:00:40]} 3. Bb5 {[%clk 01:30:44]} {[%emt 00:00:50]} Nf6 {[%clk
01:27:06]} {[%emt 00:03:20]} 4. O-O {[%clk 01:30:35]} {[%emt 00:00:38]} Nxe4
{[%clk 01:27:26]} {[%emt 00:00:10]} 5. Re1 {[%clk 01:30:18]} {[%emt 00:00:48]}
Nd6 {[%clk 01:27:48]} {[%emt 00:00:08]} 6. Nxe5 {[%clk 01:30:27]} {[%emt
00:00:21]} Be7 {[%clk 01:28:10]} {[%emt 00:00:07]} 7. Bf1 {[%clk 01:30:27]}
{[%emt 00:00:30]} Nxe5 {[%clk 01:28:11]} {[%emt 00:00:29]} 8. Rxe5 {[%clk
01:30:51]} {[%emt 00:00:06]} O-O {[%clk 01:28:35]} {[%emt 00:00:06]} 9. d4
{[%clk 01:30:50]} {[%emt 00:00:31]} Bf6 {[%clk 01:26:54]} {[%emt 00:02:12]} 10.
Re1 {[%clk 01:30:24]} {[%emt 00:00:56]} Nf5 {[%clk 01:26:45]} {[%emt 00:00:38]}
11. c3 {[%clk 01:27:09]} {[%emt 00:03:46]} d5 {[%clk 01:26:12]} {[%emt
00:01:03]} 12. Bf4 {[%clk 01:25:08]} {[%emt 00:02:31]} Bg5 {[%clk 01:19:20]}
{[%emt 00:07:22]} 13. Bxg5 {[%clk 01:22:40]} {[%emt 00:02:58]} Qxg5 {[%clk
01:19:46]} {[%emt 00:00:04]} 14. Nd2 {[%clk 01:23:00]} {[%emt 00:00:10]} c6
{[%clk 01:11:14]} {[%emt 00:09:02]} 15. Nf3 {[%clk 01:22:00]} {[%emt 00:01:30]}
Qh6 {[%clk 01:08:19]} {[%emt 00:03:24]} 16. a4 {[%clk 01:15:51]} {[%emt
00:06:39]} Nd6 {[%clk 00:52:35]} {[%emt 00:16:14]} 17. Qb3 {[%clk 01:09:45]}
{[%emt 00:06:37]} Bf5 {[%clk 00:47:01]} {[%emt 00:06:04]} 18. a5 {[%clk
01:03:31]} {[%emt 00:06:43]} a6 {[%clk 00:43:56]} {[%emt 00:03:36]} 19. c4
{[%clk 00:58:40]} {[%emt 00:05:21]} dxc4 {[%clk 00:38:26]} {[%emt 00:06:00]} 20.
Bxc4 {[%clk 00:58:47]} {[%emt 00:00:22]} Nxc4 {[%clk 00:28:09]} {[%emt
00:10:46]} 21. Qxc4 {[%clk 00:58:04]} {[%emt 00:01:15]} Be6 {[%clk 00:23:02]}
{[%emt 00:05:36]} 22. Qc3 {[%clk 00:49:59]} {[%emt 00:08:35]} Rad8 {[%clk
00:21:49]} {[%emt 00:01:43]} 23. Ra4 {[%clk 00:42:29]} {[%emt 00:08:00]} Bd5
{[%clk 00:17:22]} {[%emt 00:04:57]} 24. Qe3 {[%clk 00:35:39]} {[%emt 00:07:20]}
Qh5 {[%clk 00:14:00]} {[%emt 00:03:52]} 25. Nd2 {[%clk 00:29:26]} {[%emt
00:06:43]} Rd6 {[%clk 00:09:53]} {[%emt 00:04:37]} 26. Nf1 {[%clk 00:27:17]}
{[%emt 00:02:39]} Re6 {[%clk 00:07:12]} {[%emt 00:03:11]} 27. Qd2 {[%clk
00:26:03]} {[%emt 00:01:44]} Qg6 {[%clk 00:04:50]} {[%emt 00:02:52]} 28. Ne3
{[%clk 00:23:54]} {[%emt 00:02:39]} Rfe8 {[%clk 00:04:37]} {[%emt 00:00:44]} 29.
Rf1 {[%clk 00:18:05]} {[%emt 00:06:19]} Qg5 {[%clk 00:03:57]} {[%emt 00:01:09]}
30. Rb4 {[%clk 00:16:25]} {[%emt 00:02:10]} Bxg2 {[%clk 00:03:06]} {[%emt
00:01:21]} 31. f4 {[%clk 00:12:56]} {[%emt 00:03:59]} Qxa5 {[%clk 00:00:58]}
{[%emt 00:02:38]} 32. Nxg2 {[%clk 00:13:13]} {[%emt 00:00:13]} Re2 {[%clk
00:00:49]} {[%emt 00:00:39]} 33. Re1 {[%clk 00:11:59]} {[%emt 00:01:44]} Rxe1+
{[%clk 00:01:04]} {[%emt 00:00:15]} 34. Nxe1 {[%clk 00:12:21]} {[%emt
00:00:08]} h6 {[%clk 00:00:36]} {[%emt 00:00:59]} 35. Nf3 {[%clk 00:11:27]}
{[%emt 00:01:24]} Qd5 {[%clk 00:00:37]} {[%emt 00:00:29]} 36. Kf2 {[%clk
00:09:14]} {[%emt 00:02:42]} b5 {[%clk 00:00:58]} {[%emt 00:00:09]} 37. Qc2
{[%clk 00:08:12]} {[%emt 00:01:32]} Re4 {[%clk 00:00:51]} {[%emt 00:00:37]} 38.
Rb3 {[%clk 00:07:53]} {[%emt 00:00:49]} Rxf4 {[%clk 00:00:54]} {[%emt
00:00:27]} 39. Re3 {[%clk 00:07:57]} {[%emt 00:00:26]} Qxd4 {[%clk 00:00:57]}
{[%emt 00:00:28]} 40. Qxc6 {[%clk 00:07:25]} {[%emt 00:01:02]} Qxb2+ {[%clk
00:00:49]} {[%emt 00:00:37]} 41. Kg3 {[%clk 00:05:50]} {[%emt 00:02:05]} Rf6
{[%clk 00:24:28]} {[%emt 00:06:51]} 42. Re8+ {[%clk 00:31:57]} {[%emt
00:04:23]} Kh7 {[%clk 00:24:56]} {[%emt 00:00:02]} 43. Qe4+ {[%clk 00:30:54]}
{[%emt 00:01:33]} Rg6+ {[%clk 00:21:01]} {[%emt 00:04:25]} 44. Kf4 {[%clk
00:22:58]} {[%emt 00:08:26]} Qc1+ {[%clk 00:17:21]} {[%emt 00:04:11]} 45. Ke5
{[%clk 00:22:50]} {[%emt 00:00:38]} Qc5+ {[%clk 00:16:57]} {[%emt 00:00:54]} 46.
Kf4 {[%clk 00:22:19]} {[%emt 00:01:01]} Qc1+ {[%clk 00:16:18]} {[%emt
00:01:08]} 47. Ke5 {[%clk 00:22:20]} {[%emt 00:00:29]} Qc7+ {[%clk 00:15:38]}
{[%emt 00:01:10]} 48. Kd4 {[%clk 00:21:14]} {[%emt 00:01:36]} Qc4+ {[%clk
00:13:06]} {[%emt 00:03:02]} 49. Ke5 {[%clk 00:20:46]} {[%emt 00:00:58]} Qxe4+
{[%clk 00:12:37]} {[%emt 00:00:59]} 50. Kxe4 {[%clk 00:21:12]} {[%emt
00:00:04]} Re6+ {[%clk 00:12:40]} {[%emt 00:00:27]} 51. Rxe6 {[%clk 00:21:38]}
{[%emt 00:00:05]} fxe6 {[%clk 00:13:06]} {[%emt 00:00:04]} 52. Nd4 {[%clk
00:18:05]} {[%emt 00:04:03]} g5 {[%clk 00:09:00]} {[%emt 00:04:35]} 53. Nxe6
{[%clk 00:14:56]} {[%emt 00:03:39]} b4 {[%clk 00:07:49]} {[%emt 00:01:41]} 54.
Nc5 {[%clk 00:14:03]} {[%emt 00:01:23]} Kg6 {[%clk 00:03:10]} {[%emt 00:05:09]}
55. Nxa6 {[%clk 00:11:57]} {[%emt 00:02:36]} b3 {[%clk 00:03:38]} {[%emt
00:00:02]} 56. Kd3 {[%clk 00:12:18]} {[%emt 00:00:09]} Kf5 {[%clk 00:03:16]}
{[%emt 00:00:52]} 57. Nc5 {[%clk 00:12:33]} {[%emt 00:00:15]} b2 {[%clk
00:03:36]} {[%emt 00:00:10]} 58. Kc2 {[%clk 00:12:50]} {[%emt 00:00:14]} Kg4
{[%clk 00:02:25]} {[%emt 00:01:40]} 59. Ne4 {[%clk 00:12:35]} {[%emt 00:00:45]}
Kh3 {[%clk 00:01:48]} {[%emt 00:01:07]} 60. Nf6 {[%clk 00:12:43]} {[%emt
00:00:22]} Kxh2 {[%clk 00:00:47]} {[%emt 00:01:31]} 61. Ng4 {[%clk 00:13:03]}
{[%emt 00:00:11]} Kh3 {[%clk 00:00:41]} {[%emt 00:00:35]} 62. Nxh6 {[%clk
00:13:28]} {[%emt 00:00:05]} g4 {[%clk 00:01:00]} {[%emt 00:00:11]} 63. Nxg4
{[%clk 00:13:55]} {[%emt 00:00:03]} Kxg4 {[%clk 00:01:26]} {[%emt 00:00:05]} 64.
Kxb2 {[%clk 00:14:23]} {[%emt 00:00:02]} 1/2-1/2

[Event "Sverigemastarklassen 2025"]
[Site "Uppsala, Sweden"]
[Date "2025.06.28"]
[Round "1.5"]
[White "Hector, Jonny"]
[Black "Seo, Jung Min"]
[Result "1-0"]
[TimeControl "90 min for 40 move + 30 min with an increment of 30 sec starting move 1"]
[WhiteTitle "GM"]
[BlackTitle "IM"]
[WhiteFideId "1700090"]
[BlackFideId "1734687"]
[WhiteElo "2430"]
[BlackElo "2472"]

1. e4 {[%clk 01:30:51]} {[%emt 00:00:07]} e5 {[%clk 01:30:58]} {[%emt
00:00:03]} 2. Nf3 {[%clk 01:31:00]} {[%emt 00:00:20]} Nc6 {[%clk 01:31:27]}
{[%emt 00:00:03]} 3. Nc3 {[%clk 01:31:06]} {[%emt 00:00:23]} Nf6 {[%clk
01:31:42]} {[%emt 00:00:16]} 4. h3 {[%clk 01:31:23]} {[%emt 00:00:12]} Bb4
{[%clk 01:16:29]} {[%emt 00:15:43]} 5. a3 {[%clk 01:31:16]} {[%emt 00:00:37]}
Bxc3 {[%clk 01:14:12]} {[%emt 00:02:48]} 6. dxc3 {[%clk 01:31:36]} {[%emt
00:00:09]} d6 {[%clk 01:14:00]} {[%emt 00:00:43]} 7. Bd3 {[%clk 01:29:32]}
{[%emt 00:02:32]} Ne7 {[%clk 01:11:52]} {[%emt 00:02:39]} 8. Qe2 {[%clk
01:24:01]} {[%emt 00:06:01]} Ng6 {[%clk 01:09:32]} {[%emt 00:02:51]} 9. Be3
{[%clk 01:22:17]} {[%emt 00:02:13]} Qe7 {[%clk 01:00:58]} {[%emt 00:09:04]} 10.
O-O-O {[%clk 01:19:27]} {[%emt 00:03:19]} Bd7 {[%clk 00:58:31]} {[%emt
00:02:59]} 11. g3 {[%clk 01:17:12]} {[%emt 00:02:44]} Bc6 {[%clk 00:50:45]}
{[%emt 00:08:16]} 12. Nd2 {[%clk 01:13:47]} {[%emt 00:03:54]} Nf8 {[%clk
00:39:04]} {[%emt 00:12:12]} 13. Rhe1 {[%clk 01:05:43]} {[%emt 00:08:33]} N8d7
{[%clk 00:37:28]} {[%emt 00:02:08]} 14. f4 {[%clk 01:01:55]} {[%emt 00:04:16]}
b6 {[%clk 00:33:49]} {[%emt 00:04:10]} 15. g4 {[%clk 00:56:15]} {[%emt
00:06:09]} exf4 {[%clk 00:33:48]} {[%emt 00:00:32]} 16. Bxf4 {[%clk 00:56:29]}
{[%emt 00:00:16]} Ne5 {[%clk 00:32:06]} {[%emt 00:02:13]} 17. Bxe5 {[%clk
00:51:04]} {[%emt 00:05:54]} dxe5 {[%clk 00:12:22]} {[%emt 00:20:15]} 18. Bb5
{[%clk 00:42:00]} {[%emt 00:09:33]} Qc5 {[%clk 00:12:21]} {[%emt 00:00:31]} 19.
Bxc6+ {[%clk 00:40:25]} {[%emt 00:02:05]} Qxc6 {[%clk 00:12:47]} {[%emt
00:00:05]} 20. Nf3 {[%clk 00:39:53]} {[%emt 00:01:01]} Nd7 {[%clk 00:11:44]}
{[%emt 00:01:33]} 21. Rd5 {[%clk 00:38:41]} {[%emt 00:01:42]} O-O {[%clk
00:11:00]} {[%emt 00:01:16]} 22. Qd2 {[%clk 00:34:31]} {[%emt 00:04:38]} Nf6
{[%clk 00:05:59]} {[%emt 00:05:32]} 23. Rxe5 {[%clk 00:33:33]} {[%emt
00:01:27]} Rad8 {[%clk 00:05:42]} {[%emt 00:00:48]} 24. Qe3 {[%clk 00:31:35]}
{[%emt 00:02:27]} Rfe8 {[%clk 00:04:16]} {[%emt 00:01:57]} 25. Nd4 {[%clk
00:27:58]} {[%emt 00:04:06]} Qd6 {[%clk 00:01:56]} {[%emt 00:02:50]} 26. Rxe8+
{[%clk 00:26:50]} {[%emt 00:01:38]} Rxe8 {[%clk 00:02:25]} {[%emt 00:00:02]} 27.
e5 {[%clk 00:24:56]} {[%emt 00:02:23]} Qc5 {[%clk 00:01:31]} {[%emt 00:01:24]}
28. b4 {[%clk 00:15:49]} {[%emt 00:09:36]} Qc4 {[%clk 00:01:06]} {[%emt
00:00:56]} 29. Kb2 {[%clk 00:15:09]} {[%emt 00:01:10]} Nd7 {[%clk 00:01:21]}
{[%emt 00:00:15]} 30. Nf3 {[%clk 00:08:38]} {[%emt 00:07:00]} h6 {[%clk
00:00:36]} {[%emt 00:01:17]} 31. Qd3 {[%clk 00:06:11]} {[%emt 00:02:56]} Qe6
{[%clk 00:00:41]} {[%emt 00:00:24]} 32. g5 {[%clk 00:05:07]} {[%emt 00:01:35]}
c5 {[%clk 00:00:37]} {[%emt 00:00:34]} 33. gxh6 {[%clk 00:05:03]} {[%emt
00:00:34]} gxh6 {[%clk 00:01:06]} {[%emt 00:00:02]} 34. h4 {[%clk 00:03:58]}
{[%emt 00:01:34]} a5 {[%clk 00:01:11]} {[%emt 00:00:25]} 35. Qe4 {[%clk
00:02:54]} {[%emt 00:01:33]} Kh8 {[%clk 00:00:53]} {[%emt 00:00:49]} 36. Qf4
{[%clk 00:02:17]} {[%emt 00:01:07]} axb4 {[%clk 00:01:07]} {[%emt 00:00:17]} 37.
cxb4 {[%clk 00:02:14]} {[%emt 00:00:32]} b5 {[%clk 00:01:34]} {[%emt 00:00:03]}
38. bxc5 {[%clk 00:01:49]} {[%emt 00:00:56]} Nxc5 {[%clk 00:02:01]} {[%emt
00:00:03]} 39. Nd4 {[%clk 00:02:03]} {[%emt 00:00:15]} Qg6 {[%clk 00:01:07]}
{[%emt 00:01:25]} 40. Nxb5 {[%clk 00:01:16]} {[%emt 00:01:16]} Rb8 {[%clk
00:00:59]} {[%emt 00:00:38]} 41. a4 {[%clk 00:29:58]} {[%emt 00:01:48]} Ra8
{[%clk 00:25:08]} {[%emt 00:06:22]} 42. Nc3 {[%clk 00:25:24]} {[%emt 00:05:03]}
Kg8 {[%clk 00:15:36]} {[%emt 00:10:03]} 43. Re3 {[%clk 00:22:33]} {[%emt
00:03:20]} Qb6+ {[%clk 00:15:39]} {[%emt 00:00:27]} 44. Kc1 {[%clk 00:21:30]}
{[%emt 00:01:33]} Qc6 {[%clk 00:11:39]} {[%emt 00:04:31]} 45. e6 {[%clk
00:19:22]} {[%emt 00:02:36]} Qh1+ {[%clk 00:10:05]} {[%emt 00:02:05]} 46. Nd1
{[%clk 00:18:27]} {[%emt 00:01:24]} Nxe6 {[%clk 00:10:31]} {[%emt 00:00:05]} 47.
Rg3+ {[%clk 00:16:47]} {[%emt 00:02:10]} Kf8 {[%clk 00:09:34]} {[%emt
00:01:28]} 48. Qd6+ {[%clk 00:17:07]} {[%emt 00:00:09]} 1-0